bitfinex-derivatives/quotes_BTCF0:USTF0_20250814
["timestamp","ask_amount","ask_price","bid_price","bid_amount"]
[1755213628218,0.001,118550.0,118540.0,0.02439]
[1755213628415,0.52615838,118550.0,118540.0,0.02439]
[1755213630008,0.52615838,118550.0,118540.0,0.09463]
[1755213630725,0.52615838,118550.0,118540.0,0.11785]
[1755213634711,0.52615838,118550.0,118540.0,0.47865]
[1755213634914,0.52615838,118550.0,118540.0,1.26425]
[1755213637517,0.52515838,118550.0,118540.0,1.26425]
[1755213638818,0.02216216,118550.0,118540.0,1.26425]
[1755213639023,0.52515838,118550.0,118540.0,1.26425]
[1755213641423,0.02216216,118550.0,118540.0,1.26425]
[1755213641619,0.52515838,118550.0,118540.0,1.26425]
[1755213642730,0.02216216,118550.0,118540.0,1.26425]
[1755213642918,0.52515838,118550.0,118540.0,1.26425]
[1755213643929,0.02216216,118550.0,118540.0,1.26425]
[1755213644122,0.52515838,118550.0,118540.0,1.26425]
[1755213645421,0.50299622,118550.0,118540.0,1.26425]
[1755213645625,0.01907803,118560.0,118540.0,1.2259]
[1755213645929,0.04157047,118560.0,118550.0,0.47865]
[1755213647229,0.54556669,118560.0,118550.0,0.47865]
[1755213648216,0.04257047,118560.0,118550.0,0.47865]
[1755213648418,0.02007803,118560.0,118550.0,0.47865]
[1755213650925,0.01907803,118560.0,118550.0,1.06594092]
[1755213651125,0.50299622,118570.0,118550.0,0.99594092]
[1755213651322,0.50299622,118570.0,118560.0,1.21468]
[1755213651522,7.52210002,118580.0,118570.0,0.11785]
[1755213651724,7.52210002,118580.0,118570.0,0.47865]
[1755213653628,7.52210002,118580.0,118570.0,0.54653862]
[1755213654032,7.52310002,118580.0,118570.0,0.47865]
[1755213654333,7.0201038,118580.0,118570.0,0.47865]
[1755213654534,7.52310002,118580.0,118570.0,0.47865]
[1755213655630,7.52310002,118580.0,118570.0,0.48688127]
[1755213656942,7.0201038,118580.0,118570.0,0.48688127]
[1755213657135,7.52310002,118580.0,118570.0,0.48688127]
[1755213658937,7.54217002,118580.0,118570.0,0.55298335]
[1755213659239,7.54217002,118580.0,118570.0,0.54475208]
[1755213661836,7.0391738,118580.0,118570.0,0.54475208]
[1755213662036,7.54217002,118580.0,118570.0,0.54475208]
[1755213663937,7.54217002,118580.0,118570.0,0.42690208]
[1755213664239,8.32533002,118580.0,118570.0,0.3608]
[1755213664542,0.0352,118570.0,118560.0,1.1609003]
[1755213664842,0.53819622,118570.0,118560.0,1.1854603]
[1755213665544,0.53819622,118570.0,118560.0,1.1853403]
[1755213665753,0.53819622,118570.0,118560.0,1.14384]
[1755213666537,0.53819622,118570.0,118560.0,0.38536]
[1755213666848,0.53819622,118570.0,118560.0,1.21508]
[1755213667333,0.53919622,118570.0,118560.0,1.16828]
[1755213667640,0.53919622,118570.0,118560.0,1.21508]
[1755213669942,0.01713,118570.0,118560.0,1.21508]
[1755213670145,0.52012622,118570.0,118560.0,1.21508]
[1755213672052,0.52012622,118570.0,118560.0,1.16828]
[1755213672252,0.53919622,118570.0,118560.0,1.21508]
[1755213672850,0.0362,118570.0,118560.0,1.21508]
[1755213673052,0.53919622,118570.0,118560.0,1.21508]
[1755213675555,0.01713,118570.0,118560.0,1.21508]
[1755213675747,0.001,118570.0,118560.0,1.71807622]
[1755213676150,0.001,118570.0,118560.0,1.21508]
[1755213682161,0.001,118570.0,118560.0,1.2993676]
[1755213682659,0.001,118570.0,118560.0,1.71807622]
[1755213683852,0.001,118570.0,118560.0,1.2993676]
[1755213684961,0.001,118570.0,118560.0,1.80236382]
[1755213685262,0.001,118570.0,118560.0,1.71807622]
[1755213685458,0.001,118570.0,118560.0,1.21508]
[1755213686859,0.001,118570.0,118560.0,1.2993676]
[1755213687256,0.001,118570.0,118560.0,1.21508]
[1755213696874,0.001,118570.0,118560.0,1.2993676]
[1755213697077,0.001,118570.0,118560.0,1.90236382]
[1755213697972,0.001,118570.0,118560.0,1.3993676]
[1755213698178,7.0191038,118580.0,118570.0,0.04573]
[1755213698367,7.0191038,118580.0,118570.0,0.47696]
[1755213700779,7.0201038,118580.0,118570.0,0.47696]
[1755213702782,7.0,118580.0,118570.0,0.47696]
[1755213702984,7.0,118580.0,118570.0,1.06423672]
[1755213704784,7.001,118580.0,118570.0,0.6272819]
[1755213706273,7.001,118580.0,118570.0,1.13027812]
[1755213706477,7.001,118580.0,118570.0,1.04599762]
[1755213706673,7.001,118580.0,118570.0,0.5430014]
[1755213707278,7.02007,118580.0,118570.0,0.5430014]
[1755213711681,7.02007,118580.0,118570.0,0.5285414]
[1755213711889,7.52306622,118580.0,118570.0,0.5285414]
[1755213712188,7.02007,118580.0,118570.0,0.5285414]
[1755213712387,7.52306622,118580.0,118570.0,0.5430014]
[1755213713384,7.02007,118580.0,118570.0,0.5430014]
[1755213717994,7.02007,118580.0,118570.0,0.4969814]
[1755213719194,7.02007,118580.0,118570.0,0.5301414]
[1755213719894,7.02007,118580.0,118570.0,0.5438014]
[1755213722195,7.02007,118580.0,118570.0,1.04679762]
[1755213722393,7.02007,118580.0,118570.0,0.5438014]
[1755213722595,7.02007,118580.0,118570.0,1.04679762]
[1755213722785,7.02007,118580.0,118570.0,0.5438014]
[1755213723898,7.001,118580.0,118570.0,0.5438014]
[1755213724294,7.02007,118580.0,118570.0,0.5438014]
[1755213724690,7.001,118580.0,118570.0,1.04679762]
[1755213724889,7.001,118580.0,118570.0,0.5301414]
[1755213725085,7.02007,118580.0,118570.0,0.5470714]
[1755213725490,7.001,118580.0,118570.0,0.5470714]
[1755213725691,7.001,118580.0,118570.0,1.05006762]
[1755213726296,7.02007,118580.0,118570.0,1.05006762]
[1755213730193,7.02007,118580.0,118570.0,0.4268414]
[1755213730401,7.02007,118580.0,118570.0,1.2055614]
[1755213730602,7.52306622,118580.0,118570.0,1.2055614]
[1755213731202,7.02007,118580.0,118570.0,1.2055614]
[1755213731403,7.02007,118580.0,118570.0,1.2283014]
[1755213732396,7.52306622,118580.0,118570.0,1.2055614]
[1755213732596,7.02007,118580.0,118570.0,1.2283014]
[1755213734508,7.02007,118580.0,118570.0,1.2751214]
[1755213735409,7.02007,118580.0,118570.0,1.2283014]
[1755213736201,7.02007,118580.0,118570.0,1.2751214]
[1755213738104,7.001,118580.0,118570.0,1.2751214]
[1755213738502,7.0,118580.0,118570.0,1.2751214]
[1755213738708,7.001,118580.0,118570.0,1.2751214]
[1755213739206,7.001,118580.0,118570.0,1.77811762]
[1755213740810,7.02007,118580.0,118570.0,1.77811762]
[1755213741208,7.02007,118580.0,118570.0,1.2751214]
[1755213741412,7.02007,118580.0,118570.0,1.2055614]
[1755213741907,7.02007,118580.0,118570.0,1.2751214]
[1755213742111,7.02007,118580.0,118570.0,1.2283014]
[1755213743006,7.02007,118580.0,118570.0,1.2055614]
[1755213743507,7.02007,118580.0,118570.0,1.2283014]
[1755213744809,7.52306622,118580.0,118570.0,1.2055614]
[1755213745109,7.52306622,118580.0,118570.0,1.2078014]
[1755213745415,7.52386622,118580.0,118570.0,1.1877314]
[1755213748206,7.02087,118580.0,118570.0,1.1877314]
[1755213748415,7.52386622,118580.0,118570.0,1.1877314]
[1755213748619,7.02087,118580.0,118570.0,1.1877314]
[1755213748914,7.52386622,118580.0,118570.0,1.1877314]
[1755213749312,7.52306622,118580.0,118570.0,1.1877314]
[1755213750717,7.02007,118580.0,118570.0,1.2121214]
[1755213751112,7.52306622,118580.0,118570.0,1.2121214]
[1755213751620,7.02007,118580.0,118570.0,1.2121214]
[1755213751815,7.52306622,118580.0,118570.0,1.2121214]
[1755213753420,7.02007,118580.0,118570.0,1.2121214]
[1755213753618,7.52306622,118580.0,118570.0,1.2121214]
[1755213753818,7.02007,118580.0,118570.0,1.2121214]
[1755213754121,7.52306622,118580.0,118570.0,1.2121214]
[1755213754620,7.02007,118580.0,118570.0,1.2121214]
[1755213754820,7.52306622,118580.0,118570.0,1.2121214]
[1755213757222,7.52306622,118580.0,118570.0,0.4067714]
[1755213757522,8.30290622,118580.0,118570.0,0.0660414]
[1755213757722,8.30290622,118580.0,118560.0,1.14056]
[1755213757927,7.77984,118580.0,118560.0,1.14056]
[1755213758221,0.52175993,118570.0,118560.0,1.16495]
[1755213760117,0.01876371,118570.0,118560.0,1.16495]
[1755213760317,0.52175993,118570.0,118560.0,1.16495]
[1755213760517,0.52175993,118570.0,118560.0,1.16595]
[1755213761321,0.52175993,118570.0,118560.0,1.19816]
[1755213761516,0.52175993,118570.0,118560.0,1.21215]
[1755213763920,0.01876371,118570.0,118560.0,1.21215]
[1755213764126,0.52175993,118570.0,118560.0,1.21215]
[1755213772932,0.01876371,118570.0,118560.0,1.21215]
[1755213773130,0.52175993,118570.0,118560.0,1.21215]
[1755213775342,0.01876371,118570.0,118560.0,1.21215]
[1755213775536,0.52175993,118570.0,118560.0,1.21215]
[1755213784749,0.01876371,118570.0,118560.0,1.21215]
[1755213785050,0.52175993,118570.0,118560.0,1.21215]
[1755213786451,0.01876371,118570.0,118560.0,1.21215]
[1755213786640,0.58437487,118570.0,118560.0,1.77776116]
[1755213787446,0.01876371,118570.0,118560.0,1.77776116]
[1755213787646,0.58437487,118570.0,118560.0,1.77776116]
[1755213788150,7.58413746,118580.0,118570.0,0.11816]
[1755213788346,7.58413746,118580.0,118570.0,1.04457116]
[1755213788547,7.58413746,118580.0,118570.0,0.47896]
[1755213788747,7.52127706,118580.0,118570.0,0.47896]
[1755213789450,7.0185263,118580.0,118570.0,0.47896]
[1755213790350,7.0372863,118580.0,118570.0,0.47896]
[1755213791941,7.0185263,118580.0,118570.0,0.5632405]
[1755213792354,7.0185263,118580.0,118570.0,0.47896]
[1755213794056,7.0185263,118580.0,118570.0,0.5632405]
[1755213794256,7.0185263,118580.0,118570.0,0.47896]
[1755213795452,7.0185263,118580.0,118570.0,0.5632405]
[1755213795956,7.0185263,118580.0,118570.0,0.63011782]
[1755213796857,7.0185263,118580.0,118570.0,0.54583732]
[1755213797861,7.0372863,118580.0,118570.0,0.54583732]
[1755213800162,7.54003706,118580.0,118570.0,0.45242732]
[1755213800352,7.0372863,118580.0,118570.0,0.54583732]
[1755213803965,7.54003706,118580.0,118570.0,0.54583732]
[1755213804154,7.54003706,118580.0,118570.0,0.47785732]
[1755213804655,7.54003706,118580.0,118570.0,0.46786732]
[1755213804961,7.54003706,118580.0,118570.0,1.20619732]
[1755213805155,7.54003706,118580.0,118570.0,1.23003732]
[1755213805354,7.54003706,118580.0,118570.0,1.22995732]
[1755213814670,7.60294347,118580.0,118570.0,1.22995732]
[1755213816269,7.0372863,118580.0,118570.0,1.22995732]
[1755213816464,7.60294347,118580.0,118570.0,1.22995732]
[1755213817164,7.60294347,118580.0,118570.0,1.27641732]
[1755213826066,7.60294347,118580.0,118570.0,1.84207449]
[1755213826475,7.0372863,118580.0,118570.0,1.84207449]
[1755213826775,7.60294347,118580.0,118570.0,1.84207449]
[1755213827371,7.0372863,118580.0,118570.0,1.84207449]
[1755213827675,7.60294347,118580.0,118570.0,1.84207449]
[1755213827975,7.0372863,118580.0,118570.0,1.84207449]
[1755213828174,7.60294347,118580.0,118570.0,1.84207449]
[1755213828768,7.0372863,118580.0,118570.0,1.84207449]
[1755213829068,7.60294347,118580.0,118570.0,1.84207449]
[1755213830077,7.0372863,118580.0,118570.0,1.84207449]
[1755213830278,7.60294347,118580.0,118570.0,1.27641732]
[1755213830472,7.60294347,118580.0,118570.0,1.84207449]
[1755213831077,7.60294347,118580.0,118570.0,1.27641732]
[1755213831378,7.60294347,118580.0,118570.0,1.84207449]
[1755213831771,7.60294347,118580.0,118570.0,1.27641732]
[1755213831973,7.60294347,118580.0,118570.0,1.79561449]
[1755213832173,7.60294347,118580.0,118570.0,1.22995732]
[1755213832777,7.60294347,118580.0,118570.0,1.27641732]
[1755213833468,7.60294347,118580.0,118570.0,1.22995732]
[1755213833673,7.60294347,118580.0,118570.0,1.84207449]
[1755213834074,7.60294347,118580.0,118570.0,1.27641732]
[1755213834577,7.60294347,118580.0,118570.0,1.27823732]
[1755213835778,7.60294347,118580.0,118570.0,1.84389449]
[1755213836979,7.0372863,118580.0,118570.0,1.84389449]
[1755213837381,7.0372863,118580.0,118570.0,1.92817499]
[1755213838676,7.0185263,118580.0,118570.0,1.92817499]
[1755213838872,7.0372863,118580.0,118570.0,1.36251782]
[1755213839072,7.0372863,118580.0,118570.0,1.92817499]
[1755213839276,7.0372863,118580.0,118570.0,1.92897499]
[1755213839576,7.0185263,118580.0,118570.0,1.92897499]
[1755213839776,7.0372863,118580.0,118570.0,1.92897499]
[1755213839982,7.0372863,118580.0,118570.0,1.92817499]
[1755213842080,7.01876,118580.0,118570.0,1.92817499]
[1755213842280,7.01876,118580.0,118570.0,1.94697795]
[1755213842980,7.01876,118580.0,118570.0,1.38132078]
[1755213843179,7.01876,118580.0,118570.0,1.94697795]
[1755213846984,7.01876,118580.0,118570.0,1.38132078]
[1755213847184,7.01876,118580.0,118570.0,1.94697795]
[1755213847784,7.01876,118580.0,118570.0,1.86269745]
[1755213847984,7.01876,118580.0,118570.0,1.29704028]
[1755213848485,7.01876,118580.0,118570.0,1.86269745]
[1755213850788,7.58441717,118580.0,118570.0,1.86269745]
[1755213851490,7.01876,118580.0,118570.0,1.86269745]
[1755213851692,7.58441717,118580.0,118570.0,1.86269745]
[1755213851992,7.58441717,118580.0,118570.0,1.81441745]
[1755213852486,7.01876,118580.0,118570.0,1.84823745]
[1755213852689,7.01876,118580.0,118570.0,1.86269745]
[1755213854494,7.01876,118580.0,118570.0,1.94697795]
[1755213855696,7.01876,118580.0,118570.0,1.86269745]
[1755213855994,7.01876,118580.0,118570.0,1.81441745]
[1755213856195,7.01876,118580.0,118570.0,1.86269745]
[1755213857793,7.01876,118580.0,118570.0,1.81441745]
[1755213857994,7.01876,118580.0,118570.0,1.86269745]
[1755213858297,7.01876,118580.0,118570.0,1.81441745]
[1755213858497,7.01876,118580.0,118570.0,1.82887745]
[1755213858798,7.58441717,118580.0,118570.0,1.86269745]
[1755213859593,7.01876,118580.0,118570.0,1.86269745]
[1755213863992,7.01876,118580.0,118570.0,1.81441745]
[1755213864293,7.01876,118580.0,118570.0,1.86186745]
[1755213864889,7.01876,118580.0,118570.0,1.93417945]
[1755213865092,7.01876,118580.0,118570.0,1.29621028]
[1755213865291,7.01876,118580.0,118570.0,1.93417945]
[1755213865600,7.01876,118580.0,118570.0,1.88718945]
[1755213865800,7.65672917,118580.0,118570.0,1.88718945]
[1755213866002,7.65672917,118580.0,118570.0,1.93463945]
[1755213866201,7.01876,118580.0,118570.0,1.29667028]
[1755213866395,7.01876,118580.0,118570.0,1.93463945]
[1755213867497,7.01876,118580.0,118570.0,1.88718945]
[1755213868096,7.01876,118580.0,118570.0,1.93463945]
[1755213871898,7.01876,118580.0,118570.0,1.88718945]
[1755213872098,7.65672917,118580.0,118570.0,1.88718945]
[1755213872304,7.65672917,118580.0,118570.0,1.93463945]
[1755213872504,7.01876,118580.0,118570.0,1.93463945]
[1755213872806,7.65672917,118580.0,118570.0,1.93463945]
[1755213875405,7.01876,118580.0,118570.0,1.93463945]
[1755213876004,7.01876,118580.0,118570.0,1.24922028]
[1755213876206,7.01876,118580.0,118570.0,1.88718945]
[1755213876406,7.01876,118580.0,118570.0,1.93463945]
[1755213876706,7.65672917,118580.0,118570.0,1.93463945]
[1755213878006,7.01876,118580.0,118570.0,1.93463945]
[1755213878202,7.65672917,118580.0,118570.0,1.93463945]
[1755213878603,7.01876,118580.0,118570.0,1.93463945]
[1755213879206,7.65672917,118580.0,118570.0,1.93463945]
[1755213879596,7.65672917,118580.0,118570.0,1.88718945]
[1755213879797,7.65672917,118580.0,118570.0,1.24922028]
[1755213879995,7.65672917,118580.0,118570.0,0.44648028]
[1755213880203,7.65672917,118580.0,118570.0,1.22364028]
[1755213882408,7.65672917,118580.0,118570.0,1.24794028]
[1755213883908,7.01876,118580.0,118570.0,1.24794028]
[1755213884110,7.65672917,118580.0,118570.0,1.24794028]
[1755213884615,7.65672917,118580.0,118570.0,1.22364028]
[1755213885104,7.65672917,118580.0,118570.0,0.44648028]
[1755213885310,7.65672917,118580.0,118570.0,0.42772028]
[1755213885611,7.65672917,118580.0,118570.0,1.20484028]
[1755213887314,7.65672917,118580.0,118570.0,1.22914028]
[1755213889009,7.01876,118580.0,118570.0,1.22914028]
[1755213889210,7.65672917,118580.0,118570.0,1.22914028]
[1755213890926,7.65672917,118580.0,118570.0,1.20484028]
[1755213891322,7.65672917,118580.0,118570.0,1.22914028]
[1755213895625,7.65672917,118580.0,118570.0,1.26332028]
[1755213895822,7.65672917,118580.0,118570.0,1.22914028]
[1755213896026,7.01876,118580.0,118570.0,1.22914028]
[1755213896228,7.65672917,118580.0,118570.0,1.27827028]
[1755213897033,7.01876,118580.0,118570.0,1.27827028]
[1755213897232,7.65672917,118580.0,118570.0,1.27827028]
[1755213900426,7.65672917,118580.0,118570.0,1.22914028]
[1755213901636,7.01876,118580.0,118570.0,1.22914028]
[1755213901843,7.65672917,118580.0,118570.0,1.22914028]
[1755213903430,7.01876,118580.0,118570.0,1.22914028]
[1755213903629,7.65672917,118580.0,118570.0,1.22914028]
[1755213904838,7.01876,118580.0,118570.0,1.22914028]
[1755213905043,7.65672917,118580.0,118570.0,1.22914028]
[1755213905939,7.65672917,118580.0,118570.0,0.45202028]
[1755213906237,7.65672917,118580.0,118570.0,1.22902028]
[1755213908442,9.24113034,118580.0,118570.0,0.40891732]
[1755213908741,9.07245834,118580.0,118570.0,0.40891732]
[1755213908932,9.07245834,118580.0,118570.0,0.06687732]
[1755213909127,9.6060717,118580.0,118550.0,1.5266]
[1755213909345,1.27593834,118560.0,118550.0,1.13776]
[1755213909539,1.42080148,118560.0,118550.0,0.3608]
[1755213909842,2.19776148,118560.0,118550.0,0.3608]
[1755213910335,2.19776148,118560.0,118550.0,0.3628]
[1755213910537,2.20634065,118560.0,118550.0,0.3628]
[1755213911533,2.20634065,118560.0,118550.0,0.3618]
[1755213911733,0.93040231,118560.0,118550.0,0.3618]
[1755213912039,2.20634065,118560.0,118550.0,0.38652]
[1755213912233,1.42938065,118560.0,118550.0,0.38652]
[1755213912438,1.42938065,118560.0,118550.0,0.3618]
[1755213912738,1.64036518,118560.0,118550.0,0.3618]
[1755213913332,1.51258619,118560.0,118550.0,0.3618]
[1755213913532,1.68208219,118560.0,118550.0,0.3618]
[1755213913733,1.68208219,118560.0,118550.0,0.001]
[1755213913940,2.04288219,118560.0,118550.0,0.001]
[1755213914149,2.75240506,118560.0,118530.0,0.3608]
[1755213914442,2.75240506,118560.0,118530.0,0.38552]
[1755213914443,0.85541142,118540.0,118530.0,0.38552]
[1755213915142,0.14588855,118540.0,118530.0,0.38552]
[1755213915336,0.85541142,118540.0,118530.0,0.38552]
[1755213916245,0.85541142,118540.0,118530.0,0.38752]
[1755213916745,0.85541142,118540.0,118530.0,0.44744]
[1755213916941,0.72669069,118540.0,118530.0,0.4854]
[1755213917943,0.72669069,118540.0,118530.0,0.47045]
[1755213918143,0.72669069,118540.0,118530.0,0.4854]
[1755213918342,0.01716782,118540.0,118530.0,0.4854]
[1755213919844,0.72669069,118540.0,118530.0,0.4854]
[1755213920344,0.01716782,118540.0,118530.0,0.4854]
[1755213920544,0.72669069,118540.0,118530.0,0.4854]
[1755213920846,0.01716782,118540.0,118530.0,0.4854]
[1755213921144,0.72669069,118540.0,118530.0,0.4854]
[1755213922836,0.01716782,118540.0,118530.0,0.4854]
[1755213923039,0.72669069,118540.0,118530.0,0.4854]
[1755213923255,0.01716782,118540.0,118530.0,0.4854]
[1755213923942,0.72669069,118540.0,118530.0,0.4854]
[1755213927853,0.01716782,118540.0,118530.0,0.4854]
[1755213928055,0.72669069,118540.0,118530.0,0.4854]
[1755213930459,0.01716782,118540.0,118530.0,0.4854]
[1755213932954,8.16164518,118580.0,118530.0,1.15663037]
[1755213933153,8.18450185,118580.0,118570.0,0.02399]
[1755213933358,8.89402472,118580.0,118570.0,0.02399]
[1755213933556,9.06269672,118580.0,118570.0,0.02399]
[1755213934358,9.07091932,118580.0,118570.0,0.02399]
[1755213934548,8.28691932,118580.0,118570.0,0.02399]
[1755213934855,8.11824732,118580.0,118570.0,0.11846]
[1755213935156,7.75744732,118580.0,118570.0,0.47926]
[1755213935547,7.75844732,118580.0,118570.0,0.47926]
[1755213935755,7.75844732,118580.0,118570.0,0.54581369]
[1755213937260,7.75844732,118580.0,118570.0,0.47926]
[1755213937261,7.04070185,118580.0,118570.0,0.47926]
[1755213937462,7.75022472,118580.0,118570.0,0.47926]
[1755213937762,7.75870238,118580.0,118570.0,0.47926]
[1755213937955,7.75870238,118580.0,118570.0,0.43141]
[1755213938155,7.75870238,118580.0,118570.0,0.47926]
[1755213939262,7.75870238,118580.0,118570.0,0.46442]
[1755213939468,7.75870238,118580.0,118570.0,0.43141]
[1755213939953,7.75870238,118580.0,118570.0,0.40948]
[1755213940153,7.04917951,118580.0,118570.0,0.40948]
[1755213940454,7.75870238,118580.0,118570.0,0.40948]
[1755213940763,7.04917951,118580.0,118570.0,0.40948]
[1755213940954,7.75870238,118580.0,118570.0,0.47542688]
[1755213941554,7.04917951,118580.0,118570.0,0.47542688]
[1755213941755,7.75870238,118580.0,118570.0,0.47542688]
[1755213942057,7.75870238,118580.0,118570.0,0.54520688]
[1755213942857,7.04917951,118580.0,118570.0,0.54520688]
[1755213943169,7.75022472,118580.0,118570.0,0.54520688]
[1755213943967,7.04070185,118580.0,118570.0,0.54520688]
[1755213944164,7.75022472,118580.0,118570.0,0.54520688]
[1755213946851,7.04070185,118580.0,118570.0,0.54520688]
[1755213947050,7.75022472,118580.0,118570.0,0.54520688]
[1755213947558,7.72736805,118580.0,118570.0,0.54520688]
[1755213953169,7.01784518,118580.0,118570.0,0.54520688]
[1755213953367,7.72736805,118580.0,118570.0,0.54520688]
[1755213955262,7.72736805,118580.0,118570.0,0.49735688]
[1755213955564,7.72736805,118580.0,118570.0,0.54649688]
[1755213956570,7.72736805,118580.0,118570.0,0.53211688]
[1755213956771,7.01784518,118580.0,118570.0,0.53211688]
[1755213956969,7.72736805,118580.0,118570.0,0.53211688]
[1755213957169,7.72736805,118580.0,118570.0,0.49735688]
[1755213958174,7.72736805,118580.0,118570.0,1.29311688]
[1755213959076,7.72736805,118580.0,118570.0,0.42674688]
[1755213959372,7.72736805,118580.0,118570.0,0.45039688]
[1755213962274,7.72736805,118580.0,118570.0,0.54549688]
[1755213962469,7.72736805,118580.0,118570.0,1.24547688]
[1755213962674,7.72736805,118580.0,118570.0,0.42674688]
[1755213963277,7.72736805,118580.0,118570.0,0.45039688]
[1755213964269,7.72736805,118580.0,118570.0,0.42674688]
[1755213966069,7.72736805,118580.0,118570.0,0.45039688]
[1755213966470,7.72736805,118580.0,118570.0,0.42674688]
[1755213966777,8.52204805,118580.0,118570.0,0.3608]
[1755213966977,8.9065859,118580.0,118560.0,0.3608]
[1755213967173,1.50408287,118570.0,118550.0,1.17417308]
[1755213967476,0.92407061,118570.0,118560.0,0.3608]
[1755213967672,0.92407061,118570.0,118560.0,0.38445]
[1755213968571,1.63359348,118570.0,118560.0,0.3608]
[1755213968873,1.63359348,118570.0,118550.0,1.17469308]
[1755213969067,0.70952287,118560.0,118550.0,1.19834308]
[1755213969978,0.70952287,118560.0,118550.0,1.24748308]
[1755213970567,0.72654233,118560.0,118550.0,1.15584]
[1755213970774,0.72654233,118560.0,118550.0,0.38445]
[1755213970979,0.72654233,118560.0,118540.0,0.3608]
[1755213971278,0.70952287,118550.0,118540.0,1.17901]
[1755213972582,0.70952287,118550.0,118540.0,0.3608]
[1755213972879,0.70952287,118550.0,118540.0,0.02465]
[1755213973279,0.70952287,118550.0,118540.0,0.02365]
[1755213973478,0.70952287,118550.0,118540.0,0.02465]
[1755213974479,0.70952287,118550.0,118540.0,0.38545]
[1755213976890,2.21216574,118550.0,118540.0,0.001]
[1755213977185,2.21216574,118550.0,118540.0,0.02465]
[1755213977885,1.86344287,118550.0,118540.0,0.02465]
[1755213978881,2.57296574,118550.0,118540.0,0.001]
[1755213979180,1.86344287,118550.0,118540.0,0.02465]
[1755213979385,1.88024713,118550.0,118540.0,0.02465]
[1755213981692,2.58977,118550.0,118540.0,0.001]
[1755213982181,0.70952287,118540.0,118520.0,0.38445]
[1755213982381,1.50168287,118530.0,118520.0,0.38445]
[1755213982584,0.70952287,118530.0,118520.0,0.38445]
[1755213983186,0.70952287,118530.0,118520.0,0.47955]
[1755213983692,0.70952287,118530.0,118520.0,0.48255]
[1755213987893,0.81760765,118540.0,118530.0,0.02335]
[1755213988087,1.52713052,118540.0,118530.0,0.02335]
[1755213989096,1.52713052,118540.0,118530.0,0.02435]
[1755213991489,0.72669228,118540.0,118530.0,0.4803]
[1755213991693,0.72669228,118540.0,118530.0,0.1195]
[1755213991894,0.72669228,118540.0,118530.0,0.4803]
[1755213992286,0.72669228,118540.0,118530.0,0.1195]
[1755213992287,0.01716941,118540.0,118530.0,0.1195]
[1755213992489,0.72669228,118540.0,118530.0,0.1195]
[1755213993092,0.72669228,118540.0,118530.0,0.4803]
[1755213993600,0.70952287,118550.0,118530.0,1.27286]
[1755213993790,0.70952287,118550.0,118540.0,0.40983]
[1755213993994,0.70952287,118550.0,118540.0,0.4793]
[1755213996409,0.70952287,118550.0,118540.0,0.3608]
[1755213996700,0.70952287,118550.0,118540.0,0.4793]
[1755214002005,0.72685528,118550.0,118540.0,0.4793]
[1755214003102,0.01733241,118550.0,118540.0,0.4793]
[1755214004109,0.01733241,118550.0,118540.0,0.5636012]
[1755214004505,0.01733241,118550.0,118540.0,0.4793]
[1755214004807,0.01733241,118550.0,118540.0,0.5636012]
[1755214004994,0.01733241,118550.0,118540.0,0.4793]
[1755214005404,0.01733241,118550.0,118540.0,0.5636012]
[1755214005994,0.01733241,118550.0,118540.0,0.4793]
[1755214009002,7.02574327,118580.0,118540.0,0.4801]
[1755214009307,7.04019461,118580.0,118570.0,0.4793]
[1755214009507,7.72682655,118580.0,118570.0,0.54832796]
[1755214010707,7.72882655,118580.0,118570.0,0.54832796]
[1755214012208,7.72682655,118580.0,118570.0,0.54832796]
[1755214012407,7.72882655,118580.0,118570.0,0.54832796]
[1755214013507,7.01930368,118580.0,118570.0,0.54832796]
[1755214013806,7.72882655,118580.0,118570.0,0.54832796]
[1755214016107,7.01930368,118580.0,118570.0,0.54832796]
[1755214016408,7.72882655,118580.0,118570.0,0.54832796]
[1755214017205,7.01930368,118580.0,118570.0,0.54832796]
[1755214017411,7.72882655,118580.0,118570.0,0.54832796]
[1755214018407,7.01930368,118580.0,118570.0,0.54832796]
[1755214018710,7.72882655,118580.0,118570.0,0.54832796]
[1755214020215,7.72882655,118580.0,118570.0,0.53420796]
[1755214020507,7.72882655,118580.0,118570.0,0.46974796]
[1755214020910,7.72882655,118580.0,118570.0,0.45317796]
[1755214022809,7.01930368,118580.0,118570.0,0.45317796]
[1755214023120,7.72882655,118580.0,118570.0,0.45317796]
[1755214023315,7.01930368,118580.0,118570.0,0.45317796]
[1755214023516,7.72882655,118580.0,118570.0,0.45317796]
[1755214025527,7.01930368,118580.0,118570.0,0.45317796]
[1755214025827,7.72882655,118580.0,118570.0,0.45317796]
[1755214026232,7.01930368,118580.0,118570.0,0.45317796]
[1755214026421,7.72882655,118580.0,118570.0,0.45317796]
[1755214027122,7.72882655,118580.0,118570.0,0.42982796]
[1755214027721,7.72882655,118580.0,118570.0,0.45279796]
[1755214028527,7.01930368,118580.0,118570.0,0.45279796]
[1755214028727,7.72882655,118580.0,118570.0,0.45279796]
[1755214029319,7.01930368,118580.0,118570.0,0.45279796]
[1755214029521,7.72882655,118580.0,118570.0,0.54550796]
[1755214031126,7.75165134,118580.0,118570.0,0.54550796]
[1755214032929,7.72882655,118580.0,118570.0,0.54550796]
[1755214033129,7.75166677,118580.0,118570.0,0.54550796]
[1755214035834,7.0421439,118580.0,118570.0,0.54550796]
[1755214036138,7.75166677,118580.0,118570.0,0.54550796]
[1755214037939,7.0421439,118580.0,118570.0,0.54550796]
[1755214038140,7.75166677,118580.0,118570.0,0.54550796]
[1755214039042,7.0421439,118580.0,118570.0,0.54550796]
[1755214039240,7.75166677,118580.0,118570.0,0.54550796]
[1755214039440,7.75166677,118580.0,118570.0,0.42982796]
[1755214039840,7.75166677,118580.0,118570.0,0.45279796]
[1755214040734,8.55022677,118580.0,118570.0,0.45279796]
[1755214041435,8.55022677,118580.0,118570.0,0.42982796]
[1755214041937,8.55022677,118580.0,118550.0,0.02297]
[1755214041938,8.91182677,118580.0,118550.0,0.02297]
[1755214042134,0.70952287,118560.0,118550.0,0.02297]
[1755214042944,0.70952287,118560.0,118550.0,0.07932]
[1755214043337,0.70952287,118560.0,118550.0,0.02297]
[1755214043538,0.73237323,118560.0,118540.0,0.38377]
[1755214043843,0.70952287,118550.0,118540.0,0.44012]
[1755214044142,0.70952287,118550.0,118540.0,0.47741]
[1755214044441,0.70952287,118560.0,118550.0,0.02377]
[1755214045239,0.70952287,118560.0,118540.0,0.40095]
[1755214045444,0.70952287,118550.0,118540.0,0.38457]
[1755214045644,0.70952287,118550.0,118540.0,0.02377]